[Event "Titled Tuesday Blitz August 22 Late 2023"]
[White "Holt, Conrad"]
[Black "Olsen, Filip Boe"]
[WhiteFideId "2034387"]
[BlackFideId "1440640"]
[WhiteElo "2928"]
[BlackElo "2692"]
[Result "0-1"]
[Round "7"]
[TimeControl "180+1"]
[Date "2023.08.22"]
[WhiteClock "0:00:05"]
[BlackClock "0:01:34"]
[Board "21"]

1. d4 {[%clk 0:02:31]}  d5 {[%clk 0:02:57]} 2. c4 {[%clk 0:02:31]}  e6 {[%clk 0:02:57]} 3. Nc3 {[%clk 0:02:32]}  Nf6 {[%clk 0:02:54]} 4. cxd5 {[%clk 0:02:32]}  exd5 {[%clk 0:02:55]} 5. Bg5 {[%clk 0:02:32]}  Be7 {[%clk 0:02:56]} 6. e3 {[%clk 0:02:32]}  c6 {[%clk 0:02:52]} 7. Bd3 {[%clk 0:02:30]}  O-O {[%clk 0:02:52]} 8. Qc2 {[%clk 0:02:28]}  h6 {[%clk 0:02:52]} 9. Bh4 {[%clk 0:02:28]}  Ne8 {[%clk 0:02:52]} 10. Bxe7 {[%clk 0:02:24]}  Qxe7 {[%clk 0:02:53]} 11. Nf3 {[%clk 0:02:23]}  Nd6 {[%clk 0:02:52]} 12. O-O {[%clk 0:02:14]}  Nd7 {[%clk 0:02:52]} 13. b4 {[%clk 0:02:12]}  Nb6 {[%clk 0:02:42]} 14. a4 {[%clk 0:02:03]}  Nbc4 {[%clk 0:02:40]} 15. Nd2 {[%clk 0:01:34]}  Nxd2 {[%clk 0:02:36]} 16. Qxd2 {[%clk 0:01:34]}  Bf5 {[%clk 0:02:35]} 17. Bxf5 {[%clk 0:01:32]}  Nxf5 {[%clk 0:02:36]} 18. b5 {[%clk 0:01:32]}  Nd6 {[%clk 0:02:33]} 19. Qd3 {[%clk 0:01:26]}  Rfe8 {[%clk 0:02:28]} 20. Rfc1 {[%clk 0:01:19]}  Qg5 {[%clk 0:02:21]} 21. Na2 {[%clk 0:01:10]}  Nc4 {[%clk 0:02:14]} 22. Nb4 {[%clk 0:01:07]}  Re6 {[%clk 0:02:14]} 23. e4 {[%clk 0:00:50]}  Rae8 {[%clk 0:01:57]} 24. f3 {[%clk 0:00:41]}  Ne3 {[%clk 0:01:48]} 25. g3 {[%clk 0:00:28]}  dxe4 {[%clk 0:01:47]} 26. fxe4 {[%clk 0:00:28]}  Rxe4 {[%clk 0:01:43]} 27. bxc6 {[%clk 0:00:28]}  bxc6 {[%clk 0:01:42]} 28. Nxc6 {[%clk 0:00:28]}  Ng4 {[%clk 0:01:42]} 29. Rf1 {[%clk 0:00:17]}  Qh5 {[%clk 0:01:36]} 30. h4 {[%clk 0:00:05]}  Re3 {[%clk 0:01:34]} 0-1


[Site "https://www.chess.com"]

[Event "Titled Tuesday Blitz August 22 Late 2023"]
[White "Elsa167"]
[Black "Tologon tegin, Semetei"]
[BlackFideId "13800574"]
[WhiteElo "2890"]
[BlackElo "2615"]
[Result "1-0"]
[Round "7"]
[TimeControl "180+1"]
[Date "2023.08.22"]
[WhiteClock "0:00:12"]
[BlackClock "0:00:00"]
[Board "24"]

1. d4 {[%clk 0:03:00]}  d5 {[%clk 0:02:59]} 2. c4 {[%clk 0:03:01]}  e6 {[%clk 0:02:59]} 3. Nf3 {[%clk 0:03:01]}  Nf6 {[%clk 0:02:59]} 4. Nc3 {[%clk 0:03:02]}  Nbd7 {[%clk 0:02:57]} 5. cxd5 {[%clk 0:03:01]}  exd5 {[%clk 0:02:57]} 6. Bg5 {[%clk 0:03:02]}  c6 {[%clk 0:02:54]} 7. e3 {[%clk 0:03:01]}  Be7 {[%clk 0:02:54]} 8. Bd3 {[%clk 0:03:02]}  O-O {[%clk 0:02:54]} 9. Qc2 {[%clk 0:03:02]}  Re8 {[%clk 0:02:54]} 10. O-O {[%clk 0:03:01]}  Nf8 {[%clk 0:02:54]} 11. h3 {[%clk 0:02:58]}  Be6 {[%clk 0:02:50]} 12. Rae1 {[%clk 0:02:51]}  Rc8 {[%clk 0:02:49]} 13. a3 {[%clk 0:02:44]}  a6 {[%clk 0:02:49]} 14. Bf4 {[%clk 0:02:40]}  c5 {[%clk 0:02:48]} 15. dxc5 {[%clk 0:02:39]}  Bxc5 {[%clk 0:02:46]} 16. Rd1 {[%clk 0:02:25]}  Be7 {[%clk 0:02:18]} 17. Nd4 {[%clk 0:02:23]}  Qa5 {[%clk 0:02:14]} 18. Qb3 {[%clk 0:02:09]}  b5 {[%clk 0:02:13]} 19. Rc1 {[%clk 0:02:02]}  Red8 {[%clk 0:01:42]} 20. Na2 {[%clk 0:01:59]}  Qb6 {[%clk 0:01:40]} 21. Nb4 {[%clk 0:01:58]}  Qb7 {[%clk 0:01:32]} 22. Nbc6 {[%clk 0:01:57]}  Re8 {[%clk 0:01:26]} 23. Rc2 {[%clk 0:01:40]}  Ne4 {[%clk 0:01:14]} 24. Rfc1 {[%clk 0:01:38]}  Bf6 {[%clk 0:01:13]} 25. Bh2 {[%clk 0:01:12]}  Kh8 {[%clk 0:01:06]} 26. Nxe6 {[%clk 0:01:03]}  Nxe6 {[%clk 0:00:56]} 27. Qxd5 {[%clk 0:00:58]}  N6c5 {[%clk 0:00:56]} 28. Rxc5 {[%clk 0:00:45]}  Nxc5 {[%clk 0:00:55]} 29. Rxc5 {[%clk 0:00:44]}  Bxb2 {[%clk 0:00:45]} 30. Bg3 {[%clk 0:00:17]}  Re6 {[%clk 0:00:23]} 31. Nd4 {[%clk 0:00:12]}  Qxd5 {[%clk 0:00:00]} 32. Rxc8+ {[%clk 0:00:12]} 1-0


[Site "https://www.chess.com"]

[Event "Titled Tuesday Blitz August 22 Late 2023"]
[White "Leiva, Gianmarco"]
[Black "Roebers, Eline"]
[WhiteFideId "3804399"]
[BlackFideId "1058401"]
[WhiteElo "2758"]
[BlackElo "2583"]
[Result "1-0"]
[Round "7"]
[TimeControl "180+1"]
[Date "2023.08.22"]
[WhiteClock "0:00:38"]
[BlackClock "0:00:56"]
[Board "26"]

1. e4 {[%clk 0:03:00]}  c5 {[%clk 0:02:59]} 2. Nf3 {[%clk 0:03:00]}  e6 {[%clk 0:02:59]} 3. c3 {[%clk 0:02:59]}  Nf6 {[%clk 0:02:58]} 4. Bd3 {[%clk 0:02:57]}  d5 {[%clk 0:02:58]} 5. e5 {[%clk 0:02:57]}  Nfd7 {[%clk 0:02:58]} 6. O-O {[%clk 0:02:57]}  Nc6 {[%clk 0:02:57]} 7. Bb5 {[%clk 0:02:57]}  Qc7 {[%clk 0:02:57]} 8. Re1 {[%clk 0:02:56]}  a6 {[%clk 0:02:57]} 9. Bxc6 {[%clk 0:02:56]}  Qxc6 {[%clk 0:02:57]} 10. d4 {[%clk 0:02:44]}  h6 {[%clk 0:02:55]} 11. Be3 {[%clk 0:02:40]}  g5 {[%clk 0:02:53]} 12. dxc5 {[%clk 0:02:36]}  Bxc5 {[%clk 0:02:50]} 13. Bxc5 {[%clk 0:02:36]}  Nxc5 {[%clk 0:02:50]} 14. Nd4 {[%clk 0:02:31]}  Qb6 {[%clk 0:02:49]} 15. Nb3 {[%clk 0:02:30]}  Bd7 {[%clk 0:02:41]} 16. Qd4 {[%clk 0:02:29]}  Rc8 {[%clk 0:02:40]} 17. N1d2 {[%clk 0:02:29]}  Qb5 {[%clk 0:02:35]} 18. Nxc5 {[%clk 0:02:27]}  Rxc5 {[%clk 0:02:33]} 19. a4 {[%clk 0:02:04]}  Qb6 {[%clk 0:02:26]} 20. Rad1 {[%clk 0:01:19]}  Rc6 {[%clk 0:02:10]} 21. Ne4 {[%clk 0:01:16]}  Qxd4 {[%clk 0:01:58]} 22. Nf6+ {[%clk 0:01:15]}  Ke7 {[%clk 0:01:58]} 23. Rxd4 {[%clk 0:01:16]}  Rb6 {[%clk 0:01:56]} 24. Re2 {[%clk 0:01:04]}  Rc8 {[%clk 0:01:41]} 25. h4 {[%clk 0:00:56]}  Rc4 {[%clk 0:01:16]} 26. Rxd5 {[%clk 0:00:39]}  Bxa4 {[%clk 0:01:10]} 27. Red2 {[%clk 0:00:39]}  Rxh4 {[%clk 0:01:02]} 28. Rd7+ {[%clk 0:00:37]}  Bxd7 {[%clk 0:00:59]} 29. Rxd7+ {[%clk 0:00:37]}  Kf8 {[%clk 0:00:58]} 30. Rd8+ {[%clk 0:00:38]}  Kg7 {[%clk 0:00:56]} 31. Rg8# {[%clk 0:00:38]} 1-0


[Site "https://www.chess.com"]

[Event "Titled Tuesday Blitz August 22 Late 2023"]
[White "Bortnyk, Olexandr"]
[Black "Arias, Juan Cruz"]
[WhiteFideId "14120828"]
[BlackFideId "118540"]
[WhiteElo "3020"]
[BlackElo "2668"]
[Result "0-1"]
[Round "7"]
[TimeControl "180+1"]
[Date "2023.08.22"]
[WhiteClock "0:00:00"]
[BlackClock "0:01:43"]
[Board "30"]

1. d4 {[%clk 0:03:00]}  d5 {[%clk 0:03:00]} 2. Nc3 {[%clk 0:02:58]}  Nf6 {[%clk 0:03:00]} 3. Bf4 {[%clk 0:02:58]}  c5 {[%clk 0:03:01]} 4. e4 {[%clk 0:02:58]}  Nxe4 {[%clk 0:02:58]} 5. Nxe4 {[%clk 0:02:58]}  dxe4 {[%clk 0:02:58]} 6. dxc5 {[%clk 0:02:59]}  Qa5+ {[%clk 0:02:58]} 7. c3 {[%clk 0:03:00]}  Qxc5 {[%clk 0:02:58]} 8. Qa4+ {[%clk 0:03:00]}  Nc6 {[%clk 0:02:59]} 9. Qxe4 {[%clk 0:03:00]}  g6 {[%clk 0:03:00]} 10. Nf3 {[%clk 0:02:59]}  Bf5 {[%clk 0:02:57]} 11. Qa4 {[%clk 0:02:59]}  Bg7 {[%clk 0:02:56]} 12. Rd1 {[%clk 0:02:58]}  O-O {[%clk 0:02:55]} 13. Be3 {[%clk 0:02:59]}  Qa5 {[%clk 0:02:51]} 14. Qxa5 {[%clk 0:02:57]}  Nxa5 {[%clk 0:02:52]} 15. Be2 {[%clk 0:02:55]}  e5 {[%clk 0:02:45]} 16. O-O {[%clk 0:02:54]}  Be6 {[%clk 0:02:41]} 17. b3 {[%clk 0:02:50]}  h6 {[%clk 0:02:40]} 18. c4 {[%clk 0:02:48]}  f5 {[%clk 0:02:35]} 19. Rd6 {[%clk 0:02:45]}  Rfe8 {[%clk 0:02:34]} 20. Rfd1 {[%clk 0:02:41]}  Bf8 {[%clk 0:02:18]} 21. Nxe5 {[%clk 0:02:39]}  Bxd6 {[%clk 0:02:18]} 22. Rxd6 {[%clk 0:02:40]}  Kg7 {[%clk 0:01:55]} 23. b4 {[%clk 0:02:02]}  Nc6 {[%clk 0:01:53]} 24. Nxc6 {[%clk 0:01:53]}  bxc6 {[%clk 0:01:54]} 25. Rxc6 {[%clk 0:01:44]}  Rac8 {[%clk 0:01:48]} 26. Rxc8 {[%clk 0:00:31]}  Rxc8 {[%clk 0:01:49]} 27. Bc5 {[%clk 0:00:32]}  a5 {[%clk 0:01:49]} 28. a3 {[%clk 0:00:31]}  axb4 {[%clk 0:01:49]} 29. axb4 {[%clk 0:00:32]}  Ra8 {[%clk 0:01:49]} 30. h4 {[%clk 0:00:07]}  Ra2 {[%clk 0:01:48]} 31. Bd3 {[%clk 0:00:04]}  Rd2 {[%clk 0:01:46]} 32. Bf1 {[%clk 0:00:01]}  Rd1 {[%clk 0:01:43]} 33. b5 {[%clk 0:00:01]}  Bxc4 {[%clk 0:01:43]} 34. b6 {[%clk 0:00:01]}  Rxf1+ {[%clk 0:01:43]} 35. Kh2 {[%clk 0:00:01]}  Rb1 {[%clk 0:01:44]} 36. Kg3 {[%clk 0:00:01]}  Bd5 {[%clk 0:01:44]} 37. f3 {[%clk 0:00:01]}  g5 {[%clk 0:01:43]} 38. hxg5 {[%clk 0:00:02]}  hxg5 {[%clk 0:01:44]} 39. Kf2 {[%clk 0:00:03]}  f4 {[%clk 0:01:42]} 40. Ke2 {[%clk 0:00:03]}  Rb2+ {[%clk 0:01:41]} 41. Kd3 {[%clk 0:00:04]}  Rxg2 {[%clk 0:01:41]} 42. Kd4 {[%clk 0:00:04]}  Bxf3 {[%clk 0:01:42]} 43. Ke5 {[%clk 0:00:05]}  Kg6 {[%clk 0:01:42]} 44. b7 {[%clk 0:00:00]}  Bxb7 {[%clk 0:01:43]} 0-1


[Site "https://www.chess.com"]

[Event "Titled Tuesday Blitz August 22 Late 2023"]
[White "Hakobyan, Aram"]
[Black "Korchmar, Vasiliy"]
[WhiteFideId "13306677"]
[BlackFideId "24131750"]
[WhiteElo "2988"]
[BlackElo "2666"]
[Result "1-0"]
[Round "7"]
[TimeControl "180+1"]
[Date "2023.08.22"]
[WhiteClock "0:00:48"]
[BlackClock "0:00:00"]
[Board "31"]

1. d4 {[%clk 0:03:00]}  d5 {[%clk 0:02:58]} 2. c4 {[%clk 0:03:01]}  c6 {[%clk 0:02:59]} 3. Nc3 {[%clk 0:03:02]}  Nf6 {[%clk 0:02:59]} 4. Nf3 {[%clk 0:03:02]}  e6 {[%clk 0:02:59]} 5. Qc2 {[%clk 0:03:02]}  Nbd7 {[%clk 0:02:37]} 6. Bg5 {[%clk 0:03:02]}  Be7 {[%clk 0:02:31]} 7. e3 {[%clk 0:03:02]}  O-O {[%clk 0:02:28]} 8. Rd1 {[%clk 0:03:02]}  h6 {[%clk 0:02:27]} 9. Bf4 {[%clk 0:03:00]}  a6 {[%clk 0:02:26]} 10. a3 {[%clk 0:03:00]}  b5 {[%clk 0:02:18]} 11. c5 {[%clk 0:02:58]}  Nh5 {[%clk 0:02:19]} 12. h4 {[%clk 0:02:55]}  Nxf4 {[%clk 0:02:17]} 13. exf4 {[%clk 0:02:56]}  a5 {[%clk 0:02:17]} 14. b4 {[%clk 0:02:53]}  axb4 {[%clk 0:02:16]} 15. axb4 {[%clk 0:02:54]}  f6 {[%clk 0:02:07]} 16. Qg6 {[%clk 0:01:58]}  Qe8 {[%clk 0:01:36]} 17. Bd3 {[%clk 0:01:57]}  Qxg6 {[%clk 0:01:21]} 18. Bxg6 {[%clk 0:01:57]}  Ra3 {[%clk 0:01:15]} 19. Kd2 {[%clk 0:01:54]}  e5 {[%clk 0:01:11]} 20. h5 {[%clk 0:01:46]}  exd4 {[%clk 0:00:31]} 21. Nxd4 {[%clk 0:01:45]}  Nxc5 {[%clk 0:00:32]} 22. bxc5 {[%clk 0:01:37]}  Bxc5 {[%clk 0:00:33]} 23. Nc2 {[%clk 0:01:10]}  Ra7 {[%clk 0:00:33]} 24. Ra1 {[%clk 0:01:09]}  b4 {[%clk 0:00:22]} 25. Ne2 {[%clk 0:00:54]}  b3 {[%clk 0:00:06]} 26. Rxa7 {[%clk 0:00:53]}  Bxa7 {[%clk 0:00:06]} 27. Ncd4 {[%clk 0:00:52]}  b2 {[%clk 0:00:03]} 28. Rb1 {[%clk 0:00:50]}  c5 {[%clk 0:00:04]} 29. Nc6 {[%clk 0:00:50]}  Bb6 {[%clk 0:00:02]} 30. Rxb2 {[%clk 0:00:51]}  Bc7 {[%clk 0:00:03]} 31. Ne7+ {[%clk 0:00:50]}  Kh8 {[%clk 0:00:02]} 32. Nxc8 {[%clk 0:00:51]}  Rxc8 {[%clk 0:00:03]} 33. Rb7 {[%clk 0:00:50]}  d4 {[%clk 0:00:03]} 34. Kd3 {[%clk 0:00:49]}  Kg8 {[%clk 0:00:00]} 35. Bf5 {[%clk 0:00:48]} 1-0


[Site "https://www.chess.com"]

[Event "Titled Tuesday Blitz August 22 Late 2023"]
[White "Makarian, Rudik"]
[Black "Pham, Le Thao Nguyen"]
[WhiteFideId "44105681"]
[BlackFideId "12401226"]
[WhiteElo "2910"]
[BlackElo "2654"]
[Result "1-0"]
[Round "7"]
[TimeControl "180+1"]
[Date "2023.08.22"]
[WhiteClock "0:00:26"]
[BlackClock "0:00:00"]
[Board "33"]

1. d4 {[%clk 0:03:00]}  Nf6 {[%clk 0:02:59]} 2. c4 {[%clk 0:03:01]}  e6 {[%clk 0:02:59]} 3. Nf3 {[%clk 0:03:01]}  Bb4+ {[%clk 0:02:55]} 4. Bd2 {[%clk 0:03:01]}  Qe7 {[%clk 0:02:54]} 5. g3 {[%clk 0:03:00]}  O-O {[%clk 0:02:52]} 6. Bg2 {[%clk 0:03:00]}  Bxd2+ {[%clk 0:02:42]} 7. Qxd2 {[%clk 0:03:01]}  d6 {[%clk 0:02:42]} 8. Nc3 {[%clk 0:03:01]}  e5 {[%clk 0:02:38]} 9. O-O {[%clk 0:03:01]}  Re8 {[%clk 0:02:31]} 10. e4 {[%clk 0:02:54]}  c6 {[%clk 0:02:26]} 11. Rad1 {[%clk 0:02:53]}  Bg4 {[%clk 0:02:23]} 12. Rfe1 {[%clk 0:02:54]}  Nbd7 {[%clk 0:02:22]} 13. h3 {[%clk 0:02:40]}  Bxf3 {[%clk 0:02:11]} 14. Bxf3 {[%clk 0:02:41]}  Red8 {[%clk 0:02:01]} 15. b3 {[%clk 0:02:41]}  Rab8 {[%clk 0:01:53]} 16. h4 {[%clk 0:02:38]}  a6 {[%clk 0:01:52]} 17. Bg2 {[%clk 0:02:20]}  h6 {[%clk 0:01:47]} 18. Bh3 {[%clk 0:02:20]}  b5 {[%clk 0:01:42]} 19. cxb5 {[%clk 0:02:19]}  axb5 {[%clk 0:01:38]} 20. Kg2 {[%clk 0:02:15]}  Nb6 {[%clk 0:01:33]} 21. Qe3 {[%clk 0:02:08]}  b4 {[%clk 0:01:27]} 22. dxe5 {[%clk 0:02:04]}  dxe5 {[%clk 0:01:17]} 23. Rxd8+ {[%clk 0:02:03]}  Qxd8 {[%clk 0:01:18]} 24. Rd1 {[%clk 0:02:02]}  Qe7 {[%clk 0:01:14]} 25. Ne2 {[%clk 0:01:58]}  c5 {[%clk 0:01:10]} 26. Rc1 {[%clk 0:01:49]}  Nfd7 {[%clk 0:01:00]} 27. Ng1 {[%clk 0:01:46]}  Ra8 {[%clk 0:00:58]} 28. Rc2 {[%clk 0:01:45]}  Ra5 {[%clk 0:00:56]} 29. Nf3 {[%clk 0:01:45]}  Nb8 {[%clk 0:00:54]} 30. h5 {[%clk 0:01:40]}  Nc6 {[%clk 0:00:51]} 31. Qd3 {[%clk 0:01:34]}  Nd4 {[%clk 0:00:45]} 32. Nxd4 {[%clk 0:01:34]}  exd4 {[%clk 0:00:46]} 33. f4 {[%clk 0:01:30]}  Qa7 {[%clk 0:00:44]} 34. Qe2 {[%clk 0:01:23]}  Na8 {[%clk 0:00:36]} 35. Bf5 {[%clk 0:01:19]}  Nc7 {[%clk 0:00:36]} 36. Kh2 {[%clk 0:01:19]}  Qa6 {[%clk 0:00:29]} 37. Qd2 {[%clk 0:00:47]}  Nb5 {[%clk 0:00:26]} 38. Rxc5 {[%clk 0:00:41]}  Rxa2 {[%clk 0:00:23]} 39. Rc8+ {[%clk 0:00:40]}  Qxc8 {[%clk 0:00:21]} 40. Qxa2 {[%clk 0:00:40]}  Qd8 {[%clk 0:00:18]} 41. e5 {[%clk 0:00:38]}  d3 {[%clk 0:00:17]} 42. Qd2 {[%clk 0:00:38]}  Qd4 {[%clk 0:00:11]} 43. Qxd3 {[%clk 0:00:32]}  Qxd3 {[%clk 0:00:11]} 44. Bxd3 {[%clk 0:00:33]}  Nd4 {[%clk 0:00:10]} 45. Bc4 {[%clk 0:00:33]}  Kf8 {[%clk 0:00:11]} 46. Kg2 {[%clk 0:00:33]}  Ke7 {[%clk 0:00:10]} 47. Kf2 {[%clk 0:00:34]}  f6 {[%clk 0:00:11]} 48. exf6+ {[%clk 0:00:33]}  gxf6 {[%clk 0:00:10]} 49. g4 {[%clk 0:00:33]}  Kd6 {[%clk 0:00:07]} 50. Ke3 {[%clk 0:00:33]}  Nc2+ {[%clk 0:00:07]} 51. Ke4 {[%clk 0:00:34]}  Ne1 {[%clk 0:00:05]} 52. Kf5 {[%clk 0:00:32]}  Ke7 {[%clk 0:00:06]} 53. Kg6 {[%clk 0:00:30]}  Nf3 {[%clk 0:00:06]} 54. Kxh6 {[%clk 0:00:29]}  Nd2 {[%clk 0:00:06]} 55. Bd5 {[%clk 0:00:27]}  Kd6 {[%clk 0:00:07]} 56. Bf7 {[%clk 0:00:27]}  Ne4 {[%clk 0:00:05]} 57. Kg7 {[%clk 0:00:27]}  Ke7 {[%clk 0:00:00]} 58. h6 {[%clk 0:00:26]} 1-0


[Site "https://www.chess.com"]

[Event "Titled Tuesday Blitz August 22 Late 2023"]
[White "Rasulov, Vugar"]
[Black "Jakubowski, Krzysztof"]
[WhiteFideId "13402390"]
[BlackFideId "1112848"]
[WhiteElo "2889"]
[BlackElo "2633"]
[Result "1-0"]
[Round "7"]
[TimeControl "180+1"]
[Date "2023.08.22"]
[WhiteClock "0:00:13"]
[BlackClock "0:00:00"]
[Board "36"]

1. a3 {[%clk 0:03:00]}  g6 {[%clk 0:02:53]} 2. h4 {[%clk 0:02:58]}  h5 {[%clk 0:02:47]} 3. Nf3 {[%clk 0:02:58]}  Bg7 {[%clk 0:02:41]} 4. e4 {[%clk 0:02:59]}  c5 {[%clk 0:02:37]} 5. Nc3 {[%clk 0:02:57]}  Nc6 {[%clk 0:02:35]} 6. b4 {[%clk 0:02:55]}  cxb4 {[%clk 0:02:28]} 7. axb4 {[%clk 0:02:56]}  Nxb4 {[%clk 0:02:28]} 8. d4 {[%clk 0:02:57]}  Nc6 {[%clk 0:02:21]} 9. Bc4 {[%clk 0:02:47]}  d6 {[%clk 0:02:12]} 10. Ng5 {[%clk 0:02:33]}  Nh6 {[%clk 0:02:06]} 11. Be3 {[%clk 0:02:33]}  O-O {[%clk 0:01:59]} 12. f3 {[%clk 0:02:34]}  e5 {[%clk 0:01:43]} 13. d5 {[%clk 0:02:25]}  Nd4 {[%clk 0:01:39]} 14. Ne2 {[%clk 0:02:26]}  Qc7 {[%clk 0:01:35]} 15. Bd3 {[%clk 0:02:26]}  Nxe2 {[%clk 0:01:28]} 16. Qxe2 {[%clk 0:02:26]}  Qc3+ {[%clk 0:01:23]} 17. Kf2 {[%clk 0:02:26]}  f5 {[%clk 0:01:20]} 18. Rhb1 {[%clk 0:02:02]}  fxe4 {[%clk 0:01:04]} 19. Nxe4 {[%clk 0:02:03]}  Qc7 {[%clk 0:01:00]} 20. Kg1 {[%clk 0:02:00]}  Nf5 {[%clk 0:00:58]} 21. Bf2 {[%clk 0:02:01]}  a5 {[%clk 0:00:56]} 22. Ng5 {[%clk 0:01:55]}  Bf6 {[%clk 0:00:50]} 23. Qd2 {[%clk 0:01:44]}  a4 {[%clk 0:00:45]} 24. Ra3 {[%clk 0:01:29]}  Bd7 {[%clk 0:00:37]} 25. Rb4 {[%clk 0:01:20]}  Rae8 {[%clk 0:00:33]} 26. Rc3 {[%clk 0:01:09]}  Qa5 {[%clk 0:00:28]} 27. Ra3 {[%clk 0:00:40]}  Bxg5 {[%clk 0:00:24]} 28. hxg5 {[%clk 0:00:38]}  b5 {[%clk 0:00:21]} 29. c3 {[%clk 0:00:31]}  Rc8 {[%clk 0:00:20]} 30. Qb2 {[%clk 0:00:28]}  Rb8 {[%clk 0:00:15]} 31. c4 {[%clk 0:00:25]}  Nd4 {[%clk 0:00:06]} 32. Bxd4 {[%clk 0:00:21]}  exd4 {[%clk 0:00:07]} 33. cxb5 {[%clk 0:00:21]}  Qb6 {[%clk 0:00:05]} 34. Qxd4 {[%clk 0:00:18]}  Qxd4+ {[%clk 0:00:03]} 35. Rxd4 {[%clk 0:00:19]}  Bxb5 {[%clk 0:00:03]} 36. Bxg6 {[%clk 0:00:19]}  Rb7 {[%clk 0:00:02]} 37. Bxh5 {[%clk 0:00:18]}  Bd7 {[%clk 0:00:02]} 38. Bg4 {[%clk 0:00:16]}  Be8 {[%clk 0:00:01]} 39. f4 {[%clk 0:00:14]}  Kg7 {[%clk 0:00:01]} 40. f5 {[%clk 0:00:14]}  Rh8 {[%clk 0:00:00]} 41. Bf3 {[%clk 0:00:13]} 1-0


[Site "https://www.chess.com"]

[Event "Titled Tuesday Blitz August 22 Late 2023"]
[White "Ribeiro, Matheus Mendes Domingues"]
[Black "Durarbayli, Vasif"]
[WhiteFideId "324226923"]
[BlackFideId "13402935"]
[WhiteElo "2603"]
[BlackElo "2864"]
[Result "1/2-1/2"]
[Round "7"]
[TimeControl "180+1"]
[Date "2023.08.22"]
[WhiteClock "0:00:32"]
[BlackClock "0:02:24"]
[Board "38"]

1. c4 {[%clk 0:02:56]}  c5 {[%clk 0:03:00]} 2. Nc3 {[%clk 0:02:51]}  Nf6 {[%clk 0:03:00]} 3. Nf3 {[%clk 0:02:51]}  e6 {[%clk 0:03:00]} 4. e3 {[%clk 0:02:46]}  Nc6 {[%clk 0:03:00]} 5. d4 {[%clk 0:02:43]}  d5 {[%clk 0:03:01]} 6. cxd5 {[%clk 0:02:42]}  exd5 {[%clk 0:03:01]} 7. Be2 {[%clk 0:02:41]}  cxd4 {[%clk 0:02:58]} 8. Nxd4 {[%clk 0:02:41]}  Bd6 {[%clk 0:02:58]} 9. O-O {[%clk 0:02:41]}  O-O {[%clk 0:02:59]} 10. b3 {[%clk 0:02:38]}  Nxd4 {[%clk 0:02:54]} 11. Qxd4 {[%clk 0:02:37]}  Qc7 {[%clk 0:02:54]} 12. Nb5 {[%clk 0:02:02]}  Bxh2+ {[%clk 0:02:52]} 13. Kh1 {[%clk 0:02:03]}  Qb8 {[%clk 0:02:52]} 14. g3 {[%clk 0:01:57]}  Bxg3 {[%clk 0:02:44]} 15. fxg3 {[%clk 0:01:58]}  a6 {[%clk 0:02:45]} 16. Rxf6 {[%clk 0:01:15]}  gxf6 {[%clk 0:02:25]} 17. Qxf6 {[%clk 0:00:30]}  Qxg3 {[%clk 0:02:25]} 18. Bb2 {[%clk 0:00:30]}  Qh3+ {[%clk 0:02:25]} 19. Kg1 {[%clk 0:00:30]}  Qg3+ {[%clk 0:02:26]} 20. Kh1 {[%clk 0:00:31]}  Qh3+ {[%clk 0:02:23]} 21. Kg1 {[%clk 0:00:31]}  Qg3+ {[%clk 0:02:24]} 22. Kh1 {[%clk 0:00:32]} 1/2-1/2


[Site "https://www.chess.com"]

[Event "Titled Tuesday Blitz August 22 Late 2023"]
[White "Postlmayer, Jakob"]
[Black "Klukin, Kirill"]
[WhiteFideId "1643622"]
[BlackFideId "24199273"]
[WhiteElo "2598"]
[BlackElo "2826"]
[Result "1-0"]
[Round "7"]
[TimeControl "180+1"]
[Date "2023.08.22"]
[WhiteClock "0:00:05"]
[BlackClock "0:00:01"]
[Board "40"]

1. d4 {[%clk 0:03:00]}  d5 {[%clk 0:02:59]} 2. Nf3 {[%clk 0:03:00]}  c6 {[%clk 0:02:55]} 3. Bf4 {[%clk 0:02:58]}  Bf5 {[%clk 0:02:48]} 4. e3 {[%clk 0:02:47]}  e6 {[%clk 0:02:48]} 5. c4 {[%clk 0:02:46]}  Nf6 {[%clk 0:02:45]} 6. Qb3 {[%clk 0:02:44]}  Qc8 {[%clk 0:02:01]} 7. Nc3 {[%clk 0:02:43]}  Nbd7 {[%clk 0:02:01]} 8. Rc1 {[%clk 0:02:42]}  Be7 {[%clk 0:01:54]} 9. h3 {[%clk 0:02:42]}  h6 {[%clk 0:01:53]} 10. Be2 {[%clk 0:02:40]}  O-O {[%clk 0:01:53]} 11. O-O {[%clk 0:02:40]}  Nb6 {[%clk 0:01:46]} 12. Ne5 {[%clk 0:02:36]}  Nfd7 {[%clk 0:01:41]} 13. Nxd7 {[%clk 0:02:33]}  Qxd7 {[%clk 0:01:35]} 14. c5 {[%clk 0:02:32]}  Nc8 {[%clk 0:01:34]} 15. Qa4 {[%clk 0:02:26]}  b5 {[%clk 0:01:29]} 16. Qa6 {[%clk 0:02:17]}  Bg5 {[%clk 0:01:21]} 17. Bg3 {[%clk 0:02:10]}  Ne7 {[%clk 0:01:20]} 18. b4 {[%clk 0:02:06]}  Qc8 {[%clk 0:01:09]} 19. Qxc8 {[%clk 0:02:00]}  Nxc8 {[%clk 0:01:10]} 20. a4 {[%clk 0:01:59]}  a6 {[%clk 0:01:10]} 21. Ra1 {[%clk 0:01:58]}  Ne7 {[%clk 0:01:07]} 22. Ra2 {[%clk 0:01:45]}  a5 {[%clk 0:00:47]} 23. axb5 {[%clk 0:01:28]}  axb4 {[%clk 0:00:46]} 24. Rxa8 {[%clk 0:01:28]}  Rxa8 {[%clk 0:00:46]} 25. b6 {[%clk 0:01:22]}  e5 {[%clk 0:00:10]} 26. Bxe5 {[%clk 0:01:19]}  Bc8 {[%clk 0:00:10]} 27. Nb1 {[%clk 0:00:57]}  Ra2 {[%clk 0:00:09]} 28. Bd3 {[%clk 0:00:48]}  Bf6 {[%clk 0:00:08]} 29. Bxf6 {[%clk 0:00:43]}  gxf6 {[%clk 0:00:09]} 30. Rd1 {[%clk 0:00:38]}  Bb7 {[%clk 0:00:09]} 31. Kf1 {[%clk 0:00:37]}  Kf8 {[%clk 0:00:08]} 32. Ke1 {[%clk 0:00:32]}  Ke8 {[%clk 0:00:09]} 33. Rd2 {[%clk 0:00:25]}  Ra4 {[%clk 0:00:07]} 34. Rb2 {[%clk 0:00:22]}  Kd8 {[%clk 0:00:08]} 35. Kd2 {[%clk 0:00:20]}  Kc8 {[%clk 0:00:08]} 36. Bc2 {[%clk 0:00:20]}  Ra1 {[%clk 0:00:07]} 37. Rxb4 {[%clk 0:00:20]}  Kb8 {[%clk 0:00:07]} 38. Rb2 {[%clk 0:00:19]}  Ra5 {[%clk 0:00:07]} 39. Bd3 {[%clk 0:00:19]}  Bc8 {[%clk 0:00:07]} 40. Nc3 {[%clk 0:00:19]}  Bf5 {[%clk 0:00:06]} 41. Be2 {[%clk 0:00:18]}  Kb7 {[%clk 0:00:06]} 42. g4 {[%clk 0:00:18]}  Bg6 {[%clk 0:00:06]} 43. Ra2 {[%clk 0:00:18]}  Rxa2+ {[%clk 0:00:06]} 44. Nxa2 {[%clk 0:00:19]}  f5 {[%clk 0:00:07]} 45. Nb4 {[%clk 0:00:18]}  fxg4 {[%clk 0:00:07]} 46. hxg4 {[%clk 0:00:19]}  f5 {[%clk 0:00:06]} 47. gxf5 {[%clk 0:00:19]}  Bxf5 {[%clk 0:00:06]} 48. Ke1 {[%clk 0:00:18]}  Bd7 {[%clk 0:00:04]} 49. Kf1 {[%clk 0:00:18]}  Nf5 {[%clk 0:00:05]} 50. Kg2 {[%clk 0:00:17]}  Nh4+ {[%clk 0:00:04]} 51. Kg3 {[%clk 0:00:16]}  Ng6 {[%clk 0:00:04]} 52. Bd3 {[%clk 0:00:16]}  Ne7 {[%clk 0:00:04]} 53. f3 {[%clk 0:00:14]}  Be8 {[%clk 0:00:04]} 54. e4 {[%clk 0:00:13]}  Bg6 {[%clk 0:00:03]} 55. Kg4 {[%clk 0:00:12]}  Ng8 {[%clk 0:00:01]} 56. exd5 {[%clk 0:00:11]}  Bxd3 {[%clk 0:00:02]} 57. dxc6+ {[%clk 0:00:11]}  Kc8 {[%clk 0:00:02]} 58. Nxd3 {[%clk 0:00:11]}  Nf6+ {[%clk 0:00:03]} 59. Kf5 {[%clk 0:00:11]}  Nd5 {[%clk 0:00:03]} 60. Ke5 {[%clk 0:00:10]}  Ne7 {[%clk 0:00:04]} 61. d5 {[%clk 0:00:09]}  h5 {[%clk 0:00:03]} 62. c7 {[%clk 0:00:08]}  h4 {[%clk 0:00:03]} 63. Nf4 {[%clk 0:00:08]}  Kd7 {[%clk 0:00:02]} 64. c6+ {[%clk 0:00:07]}  Kc8 {[%clk 0:00:02]} 65. Ke6 {[%clk 0:00:06]}  Nxd5 {[%clk 0:00:01]} 66. Kxd5 {[%clk 0:00:05]}  h3 {[%clk 0:00:01]} 67. Kd6 {[%clk 0:00:05]} 1-0


[Site "https://www.chess.com"]